bitfinex-derivatives/quotes_ETHF0:USTF0_20241018
["timestamp","ask_amount","ask_price","bid_price","bid_amount"]
[1729243283400,12.7576,2633.4,2632.1,0.99223706]
[1729243283697,12.7576,2633.4,2632.4,0.37996]
[1729243283698,2.96,2633.0,2632.4,0.37996]
[1729243283897,3.33989,2633.0,2632.4,0.37996]
[1729243284097,2.96,2633.0,2632.5,0.37996]
[1729243284292,44.0078,2633.1,2632.5,0.37996]
[1729243284603,44.0078,2633.1,2632.7,0.37993]
[1729243284801,44.0078,2633.1,2632.8,0.7187]
[1729243285602,3.2078,2633.1,2632.8,1.09861]
[1729243285801,3.2078,2633.1,2632.9,0.7573]
[1729243287290,2.96,2633.5,2632.9,3.9651]
[1729243287596,40.8,2633.7,2632.9,3.9651]
[1729243287597,2.96,2633.7,2632.9,3.9651]
[1729243287796,0.37982,2633.5,2633.0,0.37988]
[1729243288196,2.96,2633.2,2632.3,3.2078]
[1729243288398,3.40107941,2633.4,2632.3,3.2078]
[1729243288399,2.96,2633.0,2632.5,0.719]
[1729243288800,0.37992,2632.8,2632.5,0.719]
[1729243289193,2.96,2633.0,2632.5,0.719]
[1729243289799,0.37993,2632.7,2632.5,0.719]
[1729243290206,2.96,2633.0,2632.5,0.719]
[1729243290399,0.37991,2632.8,2632.5,0.719]
[1729243290703,2.96,2633.0,2632.5,1.09895]
[1729243290704,0.37991,2632.9,2632.5,1.09895]
[1729243291296,0.37992,2632.8,2632.5,0.719]
[1729243292097,0.37994,2632.7,2632.3,3.2078]
[1729243292300,2.96,2632.8,2632.3,4.34618]
[1729243292601,0.37995,2632.6,2632.3,3.9662]
[1729243293002,2.96,2632.8,2632.3,3.9662]
[1729243293003,2.96,2632.8,2632.3,4.34618]
[1729243293197,0.37993,2632.7,2632.3,4.34618]
[1729243293401,2.96,2633.0,2632.3,4.34618]
[1729243293611,0.37994,2632.7,2632.3,4.34618]
[1729243293798,2.96,2632.8,2632.3,4.34618]
[1729243294111,0.37995,2632.6,2632.3,4.34618]
[1729243294601,2.96,2632.4,2632.2,0.7617]
[1729243294805,0.37999,2632.3,2632.2,0.7617]
[1729243295300,2.96,2632.4,2631.9,0.7584]
[1729243295507,3.33998,2632.4,2632.0,0.38002]
[1729243296004,40.8,2632.5,2631.9,1.4712]
[1729243296309,3.2078,2632.6,2631.9,1.4712]
[1729243296508,3.2078,2632.6,2632.2,0.37999]
[1729243296996,3.2078,2632.6,2631.9,1.4712]
[1729243297198,3.2078,2632.6,2631.9,2.42129]
[1729243297403,3.58768,2633.1,2632.7,0.37993]
[1729243297601,3.33987,2633.2,2632.8,1.442]
[1729243297801,0.37988,2633.1,2632.8,1.442]
[1729243298112,3.33986,2633.2,2632.8,1.442]
[1729243298409,2.96,2633.2,2632.8,1.442]
[1729243299309,3.33986,2633.2,2632.8,1.442]
[1729243301107,2.96,2633.2,2632.8,1.442]
[1729243301309,3.33986,2633.2,2632.8,1.442]
[1729243301694,40.8,2633.4,2632.8,1.442]
[1729243301895,2.96,2632.9,2632.8,1.442]
[1729243302404,3.3399,2632.9,2632.5,3.2078]
[1729243302608,2.96,2632.7,2632.5,3.2078]
[1729243302798,0.37995,2632.6,2632.3,3.2078]
[1729243303607,2.96,2632.7,2632.3,3.2078]
[1729243303904,0.37994,2632.6,2632.3,3.2078]
[1729243304903,2.96,2632.7,2632.3,3.2078]
[1729243305309,0.37995,2632.6,2632.3,3.2078]
[1729243306604,2.96,2632.7,2632.3,3.2078]
[1729243306904,0.37994,2632.6,2632.3,3.2078]
[1729243307109,2.96,2632.7,2632.3,3.2078]
[1729243307314,3.33994,2632.7,2632.3,3.2078]
[1729243308307,0.37994,2632.6,2632.3,3.2078]
[1729243309107,2.96,2632.7,2632.3,3.2078]
[1729243309310,0.37997,2632.5,2632.3,3.2078]
[1729243309714,0.7895,2632.6,2632.3,3.2078]
[1729243310012,0.37997,2632.4,2632.3,3.2078]
[1729243311604,3.33996,2632.5,2632.3,3.2078]
[1729243311818,2.96,2632.7,2632.3,3.2078]
[1729243312209,0.7802,2632.8,2632.3,3.2078]
[1729243312210,2.96,2632.5,2632.3,3.2078]
[1729243313308,2.96,2632.5,2632.3,4.0071]
[1729243315904,3.2078,2632.9,2632.7,0.37992]
[1729243316213,3.2078,2632.9,2632.4,4.74914]
[1729243316214,3.2078,2633.2,2632.8,0.7518]
[1729243316414,3.7401,2633.3,2632.8,0.7518]
[1729243316718,2.96,2633.1,2632.8,0.7518]
[1729243317102,2.96,2633.1,2632.8,1.13171]
[1729243317616,2.96,2633.1,2632.9,0.7456]
[1729243320909,3.33985,2633.3,2632.9,1.8692]
[1729243321111,40.8,2633.4,2632.9,1.4893]
[1729243321310,40.8,2633.4,2633.1,0.37987]
[1729243321707,40.8,2633.4,2633.0,3.2078]
[1729243322017,2.96,2633.7,2633.0,3.2078]
[1729243322206,4.5329,2633.9,2633.6,0.37979]
[1729243322414,3.33972,2634.2,2633.7,0.37978]
[1729243322614,40.8,2634.1,2633.8,0.7596]
[1729243322812,40.8,2634.1,2633.8,1.13936]
[1729243323113,40.8,2634.1,2633.8,0.7596]
[1729243323319,40.8,2634.1,2633.8,1.13936]
[1729243323509,40.8,2634.1,2633.8,0.7596]
[1729243325022,40.8,2634.1,2633.8,1.13936]
[1729243325317,40.8,2634.1,2632.7,0.99223706]
[1729243325318,0.37991,2632.9,2632.7,0.99223706]
[1729243325517,0.37991,2632.9,2632.6,4.6961556]
[1729243325518,0.37991,2632.9,2632.6,3.2078]
[1729243326016,0.37988,2633.1,2632.6,3.2078]
[1729243326232,2.96,2633.2,2632.6,3.2078]
[1729243326520,0.37988,2633.1,2632.6,3.2078]
[1729243326821,3.2078,2633.3,2633.0,0.37988]
[1729243327015,3.2078,2633.3,2633.1,0.7615]
[1729243327219,3.2078,2633.3,2633.2,0.8016]
[1729243328919,3.58764,2633.3,2633.2,0.8016]
[1729243329121,3.2078,2633.3,2633.2,0.8016]
[1729243331826,3.33983,2633.4,2633.2,0.8016]
[1729243332419,0.37993,2632.7,2632.6,3.2078]
[1729243332622,0.37996,2632.5,2632.2,3.9827]
[1729243333022,40.8,2632.5,2632.2,3.9827]
[1729243333330,0.37998,2632.4,2632.2,3.9827]
[1729243333622,0.37999,2632.3,2632.2,3.9827]
[1729243336323,0.37999,2632.3,2632.2,0.7749]
[1729243336629,3.2078,2632.5,2632.2,0.7749]
[1729243336927,3.33998,2632.4,2632.2,0.7749]
[1729243337324,3.33998,2632.4,2631.8,0.7986]
[1729243337325,2.96,2632.4,2631.8,0.7986]
[1729243337520,2.96,2631.9,2631.8,0.7986]
[1729243337726,3.34004,2631.9,2631.8,0.7986]
[1729243338224,2.96,2631.9,2631.8,0.7986]
[1729243338423,3.34004,2631.9,2631.8,0.7986]
[1729243341127,2.96,2632.0,2631.8,0.7986]
[1729243341430,3.34004,2632.0,2631.8,0.7986]
[1729243341728,2.96,2632.0,2631.8,0.7986]
[1729243341931,2.96,2632.0,2631.9,0.727]
[1729243342931,2.96,2632.0,2631.7,3.2078]
[1729243342932,2.96,2632.0,2631.6,3.2078]
[1729243343133,2.96,2631.9,2631.6,3.2078]
[1729243343831,3.34005,2631.9,2631.6,3.2078]
[1729243344436,0.38006,2631.8,2631.6,3.2078]
[1729243345633,2.96,2631.9,2631.6,3.2078]
[1729243345834,0.38006,2631.8,2631.6,3.2078]
[1729243346036,0.38005,2631.9,2631.6,3.58788]
[1729243346535,2.96,2632.1,2631.6,3.2078]
[1729243346839,0.38004,2631.9,2631.6,3.58788]
[1729243347137,2.96,2632.1,2631.6,3.2078]
[1729243347434,3.34002,2632.1,2631.6,3.2078]
[1729243347740,3.34002,2632.1,2631.8,0.38005]
[1729243347927,2.96,2632.1,2631.8,0.38005]
[1729243348126,2.96,2632.1,2631.9,0.7441]
[1729243352339,2.96,2632.1,2631.9,1.12413]
[1729243352637,40.8,2632.6,2632.1,0.95004]
[1729243352831,0.37989,2633.0,2632.3,6.1678]
[1729243353023,2.96,2633.2,2632.6,0.37994]
[1729243353223,41.17988,2633.1,2632.6,0.37994]
[1729243353427,0.37989,2633.0,2632.6,0.37994]
[1729243353627,2.96,2633.0,2632.6,0.37994]
[1729243353828,3.33989,2633.0,2632.6,0.37994]
[1729243354035,2.96,2633.0,2632.6,0.37994]
[1729243354538,3.33989,2633.0,2632.6,0.37994]
[1729243354739,2.96,2633.0,2632.6,0.37994]
[1729243355136,2.96,2633.0,2632.7,0.37992]
[1729243355430,2.96,2633.0,2632.6,0.37993]
[1729243358437,2.96,2633.0,2632.7,0.37993]
[1729243358635,2.96,2633.0,2632.8,0.7492]
[1729243358933,40.8,2632.9,2632.8,0.7492]
[1729243359338,3.33986,2633.2,2632.8,0.7492]
[1729243359339,2.96,2633.2,2632.8,0.7492]
[1729243359529,3.58758,2633.8,2633.1,0.37987]
[1729243359734,3.58758,2633.8,2633.0,2.96]
[1729243359735,3.58758,2633.8,2633.3,0.37984]
[1729243359938,3.58758,2633.8,2633.4,0.7492]
[1729243360241,0.37979,2633.7,2633.4,1.5131]
[1729243360637,0.37981,2633.6,2633.4,1.5131]
[1729243363438,3.33979,2633.7,2633.4,1.5131]
[1729243363635,2.96,2633.7,2633.4,1.5131]
[1729243363835,2.96,2633.7,2633.4,1.89292]
[1729243364643,2.96,2633.7,2633.4,1.5131]
[1729243365435,40.8,2633.6,2633.4,1.5131]
[1729243368151,40.8,2633.6,2633.4,1.89292]
[1729243368541,40.8,2633.6,2633.4,1.5131]
[1729243370041,40.8,2633.6,2633.4,1.89291]
[1729243370344,40.8,2633.6,2633.5,0.37981]
[1729243370847,3.2078,2633.8,2633.4,1.89292]
[1729243371441,40.8,2633.7,2633.4,1.5131]
[1729243371746,40.8,2633.7,2633.4,1.89292]
[1729243372537,40.8,2633.7,2633.4,1.5131]
[1729243372744,40.8,2633.7,2633.4,1.89292]
[1729243373942,40.8,2633.7,2633.4,1.5131]
[1729243374142,40.8,2633.7,2633.5,0.37981]
[1729243374344,40.8,2633.7,2633.4,1.89292]
[1729243376349,0.37977,2633.9,2633.4,1.89292]
[1729243376552,4.6316,2634.1,2633.5,3.2078]
[1729243376750,41.17975,2634.0,2633.5,3.58761]
[1729243376952,40.8,2634.0,2633.5,3.2078]
[1729243377250,0.37973,2634.1,2633.7,0.37978]
[1729243377643,40.8,2634.1,2633.8,0.37976]
[1729243377843,40.8,2634.1,2633.9,1.5484]
[1729243378144,3.2078,2634.2,2633.9,1.5484]
[1729243378349,3.2078,2634.2,2633.9,1.92815]
[1729243378854,3.58751,2634.2,2633.9,1.5484]
[1729243379054,3.2078,2634.2,2633.9,1.5484]
[1729243380056,0.37974,2634.0,2633.6,0.37979]
[1729243380255,0.37974,2634.0,2633.5,4.3492]
[1729243380550,2.96,2634.1,2633.5,4.3492]
[1729243380752,0.3798,2633.6,2633.5,3.9694]
[1729243382150,2.96,2633.7,2633.5,3.9694]
[1729243382360,0.3798,2633.6,2633.5,3.9694]
[1729243383048,2.96,2633.7,2633.5,3.9694]
[1729243383349,3.2078,2633.9,2633.5,3.9694]
[1729243383555,3.2078,2634.1,2633.5,3.9694]
[1729243383751,0.37977,2633.9,2633.5,4.34921]
[1729243383946,0.37978,2633.8,2633.5,3.9694]
[1729243384152,0.37976,2633.9,2633.5,4.34921]
[1729243385252,6.1678,2634.1,2633.5,3.9694]
[1729243385457,0.37979,2633.7,2633.5,3.9694]
[1729243386452,0.3798,2633.6,2633.5,3.9694]
[1729243387665,0.37979,2633.7,2633.5,3.9694]
[1729243387956,0.37979,2633.7,2633.5,0.7616]
[1729243390253,0.37978,2633.7,2633.5,0.7616]
[1729243391653,0.3798,2633.6,2633.5,0.7616]
[1729243392053,0.3798,2633.6,2633.2,3.2078]
[1729243392257,0.37981,2633.6,2633.2,4.32055]
[1729243392459,0.37981,2633.5,2633.2,4.32055]
[1729243393451,1.3015,2633.7,2633.2,3.9407]
[1729243393647,0.37982,2633.5,2633.2,4.32055]
[1729243394450,0.5441,2633.7,2633.2,3.9407]
[1729243394659,0.7574,2634.0,2633.2,6.9007]
[1729243394959,0.7574,2634.0,2633.5,0.3798]
[1729243394960,0.37979,2633.7,2633.5,0.3798]
[1729243395161,0.37979,2633.7,2633.6,0.8096]
[1729243396163,0.37978,2633.8,2633.6,0.8096]
[1729243397258,0.37977,2633.8,2633.6,0.8096]
[1729243398158,0.37976,2633.9,2633.6,0.8096]
[1729243398968,0.37976,2633.9,2633.7,0.8086]
[1729243402362,1.13715,2634.0,2633.7,0.8086]
[1729243402670,0.37976,2633.9,2633.7,0.8086]
[1729243403058,0.37975,2634.0,2633.7,0.8086]
[1729243403258,0.37976,2633.9,2633.7,0.8086]
[1729243409770,0.37975,2634.0,2633.7,0.8086]
[1729243409960,0.37976,2633.9,2633.7,0.8086]
[1729243411872,1.37,2633.8,2633.7,0.8086]
[1729243416564,1.37,2633.9,2633.8,0.37977]
[1729243416967,1.37,2634.0,2633.8,1.74977]
[1729243417169,3.58752,2634.2,2633.9,1.37]
[1729243417170,1.37,2634.1,2633.9,1.37]
[1729243417469,1.37,2634.1,2634.0,0.7595]
[1729243419762,3.2078,2634.2,2634.0,0.7595]
[1729243419968,3.2078,2634.2,2634.1,1.37]
[1729243420170,3.2078,2634.2,2634.1,2.1848]
[1729243420373,3.2078,2634.2,2634.1,2.56453]
[1729243420970,4.5778,2634.2,2634.1,2.56453]
[1729243421174,4.5778,2634.2,2634.1,2.1848]
[1729243421469,4.5778,2634.2,2634.1,0.8148]
[1729243421674,4.95751,2634.2,2634.0,0.7595]
[1729243421860,1.37,2634.1,2634.0,0.7595]
[1729243428576,1.74973,2634.1,2634.0,0.7595]
[1729243428773,1.37,2634.1,2634.0,0.7595]
[1729243436883,1.37,2634.2,2634.0,0.7595]
[1729243438683,1.37,2634.2,2634.1,1.37]
[1729243440198,1.37,2634.2,2634.0,2.50924]
[1729243440407,1.37,2634.2,2634.0,2.1295]
[1729243441502,1.37,2634.1,2634.0,2.1295]
[1729243441699,1.37,2634.1,2634.0,0.7595]
[1729243443607,1.74974,2634.1,2633.7,4.39618]
[1729243443813,1.74977,2633.8,2633.7,3.2078]
[1729243444109,1.74977,2633.8,2633.2,1.4883556]
[1729243444110,0.37983,2633.4,2633.3,0.7704]
[1729243444414,1.74983,2633.4,2633.3,0.7704]
[1729243444903,1.74983,2633.4,2633.0,1.37]
[1729243444904,1.37,2633.4,2633.0,1.37]
[1729243445104,1.37,2633.1,2633.0,0.7704]
[1729243445703,1.37,2633.2,2633.0,2.1404]
[1729243447209,1.37,2633.2,2633.0,5.3482]
[1729243448907,3.58762,2633.5,2633.1,1.74986]
[1729243449108,1.37,2633.3,2633.1,1.74986]
[1729243449308,1.37,2633.3,2633.2,0.7696]
[1729243449719,1.37,2633.4,2633.2,2.1396]
[1729243449910,1.37,2633.4,2633.2,2.51945]
[1729243450110,1.37,2633.4,2633.2,2.1396]
[1729243451206,3.2078,2633.5,2633.2,2.1396]
[1729243451517,1.37,2633.4,2633.2,2.1396]
[1729243451811,1.37,2633.4,2633.2,2.51945]
[1729243452406,1.37,2633.4,2633.2,2.1396]
[1729243452604,1.37,2633.4,2633.3,1.37]
[1729243466927,1.37,2633.4,2633.2,3.9774]
[1729243467226,1.37,2633.4,2633.2,0.7696]
[1729243467227,1.37,2633.3,2633.2,0.7696]
[1729243468426,1.74984,2633.3,2633.2,0.7696]
[1729243471226,0.37987,2633.1,2633.0,0.7704]
[1729243471421,1.74987,2633.1,2633.0,2.1404]
[1729243471633,1.37,2633.1,2633.0,2.1404]
[1729243472333,1.37,2633.1,2633.0,2.52028]
[1729243472632,1.37,2633.1,2633.0,2.1404]
[1729243474020,1.74986,2633.3,2633.0,2.52028]
[1729243474438,0.37986,2633.2,2633.0,2.52028]
[1729243474931,1.74986,2633.3,2633.0,2.52028]
[1729243475833,1.37,2633.3,2633.0,2.52028]
[1729243476038,1.74985,2633.3,2633.0,2.52028]
[1729243481441,1.37,2633.3,2633.0,2.1404]
[1729243481736,0.674,2633.4,2633.1,1.74986]
[1729243481737,1.74983,2633.4,2633.1,1.74986]
[1729243482432,1.74983,2633.4,2633.1,1.37]
[1729243486447,1.37,2633.4,2633.1,1.37]
[1729243486641,1.74983,2633.4,2633.1,1.37]
[1729243486943,0.8061,2633.5,2633.1,1.37]
[1729243487137,3.48233243,2633.7,2633.4,1.37]
[1729243487344,4.95759,2633.7,2633.5,1.37]
[1729243487551,4.95759,2633.7,2633.6,1.5648]
[1729243487739,4.5778,2633.7,2633.6,1.5648]
[1729243487945,4.95758,2633.7,2633.6,1.5648]
[1729243488850,1.74978,2633.7,2633.6,1.5648]
[1729243491252,1.37,2633.7,2633.6,1.5648]
[1729243491952,1.74978,2633.7,2633.6,1.5648]
[1729243492441,1.37,2633.7,2633.6,1.5648]
[1729243492645,1.74978,2633.7,2633.6,1.5648]
[1729243493143,1.37,2633.7,2633.6,1.5648]
[1729243493351,1.74978,2633.7,2633.6,1.5648]
[1729243494347,1.37,2633.7,2633.6,1.5648]
[1729243494857,1.37,2633.8,2633.6,2.9348]
[1729243495150,4.4068,2634.1,2633.7,1.74978]
[1729243495151,1.37,2634.0,2633.7,1.74978]
[1729243495359,1.37,2634.0,2633.9,1.37]
[1729243496449,1.37,2634.0,2633.8,1.37]
[1729243496650,1.37,2634.0,2633.8,1.74977]
[1729243496852,1.37,2634.0,2633.9,0.832]
[1729243497648,1.37,2634.0,2633.6,1.5648]
[1729243497649,0.37978,2633.8,2633.6,1.5648]
[1729243497854,1.37,2633.7,2633.6,1.5648]
[1729243498659,1.74978,2633.7,2633.6,0.7762]
[1729243503577,1.37,2633.7,2633.6,0.7762]
[1729243503784,1.37,2633.8,2633.6,2.1462]
[1729243503973,1.37,2633.8,2633.7,1.37]
[1729243505274,1.37,2634.0,2633.7,1.74978]
[1729243505470,1.37,2634.0,2633.8,1.37]
[1729243505871,0.37974,2634.0,2633.9,0.8231]
[1729243506087,1.74974,2634.0,2633.9,0.8231]
[1729243507679,0.37978,2633.7,2633.6,0.7762]
[1729243507888,1.74978,2633.7,2633.6,0.7762]
[1729243512295,1.37,2633.7,2633.6,0.7762]
[1729243513482,1.37,2633.7,2633.6,2.1462]
[1729243514185,1.37,2633.7,2633.6,0.7762]
[1729243516693,1.74978,2633.7,2633.6,0.7762]
[1729243518187,1.37,2633.7,2633.6,0.7762]
[1729243519292,1.74978,2633.7,2633.6,0.7762]
[1729243520293,1.37,2633.7,2633.6,0.7762]
[1729243520889,1.74978,2633.7,2633.6,0.7762]
[1729243521089,1.37,2633.7,2633.6,0.7762]
[1729243521592,1.74978,2633.7,2633.6,0.7762]
[1729243521894,1.37,2633.7,2633.6,0.7762]
[1729243523187,1.74978,2633.7,2633.6,0.7762]
[1729243524895,1.37,2633.7,2633.6,0.7762]
[1729243525090,1.74978,2633.7,2633.6,0.7762]
[1729243526299,1.37,2633.7,2633.6,0.7762]
[1729243526688,1.74978,2633.7,2633.6,0.7762]
[1729243527889,1.37,2633.7,2633.6,0.7762]
[1729243533496,1.37,2633.8,2633.6,0.7762]
[1729243533806,1.37,2633.8,2633.6,1.15599]
[1729243534003,1.37,2633.8,2633.6,0.7762]
[1729243536001,1.37,2633.7,2633.6,0.7762]
[1729243538906,0.37976,2633.9,2633.6,2.1462]
[1729243538907,1.37,2633.8,2633.6,2.1462]
[1729243541211,1.37,2633.7,2633.6,2.1462]
[1729243541515,1.37,2633.7,2633.6,0.7762]
[1729243541911,1.37,2633.7,2632.9,0.27757387]
[1729243541912,11.1668,2633.7,2632.8,3.2078]
[1729243542104,0.37986,2633.2,2633.1,0.4799]
[1729243542306,4.5778,2633.2,2632.5,0.8914]
[1729243542616,1.37,2632.6,2632.5,0.9835]
[1729243543417,1.74994,2632.6,2632.5,0.9835]
[1729243543715,1.37,2632.6,2632.5,0.9835]
[1729243543921,1.74994,2632.6,2632.5,0.9835]
[1729243546807,1.37,2632.6,2632.5,0.9835]
[1729243547013,1.74994,2632.6,2632.5,0.9835]
[1729243547602,1.37,2632.6,2632.5,0.9835]
[1729243558833,1.74994,2632.6,2632.5,0.9835]
[1729243560914,1.37,2632.6,2632.5,0.9835]
[1729243561111,1.74994,2632.6,2632.5,0.9835]
[1729243562122,1.74994,2632.6,2631.9,0.5322]
[1729243562123,12.11828,2632.6,2631.9,0.5322]
[1729243562324,1.37,2632.0,2631.9,3.29384]
[1729243562524,1.37,2632.1,2631.9,2.3816]
[1729243562726,1.37,2632.1,2631.9,2.76164]
[1729243562927,1.37,2632.0,2631.9,2.3816]
[1729243563228,1.37,2632.0,2631.9,2.76164]
[1729243563423,1.37,2632.0,2631.9,2.3816]
[1729243564823,1.75003,2632.0,2631.9,2.3816]
[1729243567117,1.75003,2632.0,2631.9,1.0116]
[1729243569725,1.37,2632.0,2631.9,2.3816]
[1729243570620,1.37,2632.0,2631.9,2.76164]
[1729243571123,1.37,2632.0,2631.9,2.3816]
[1729243571625,1.37,2632.0,2631.9,1.0116]
[1729243572717,1.75003,2632.0,2631.9,1.0116]
[1729243576932,1.37,2632.0,2631.9,1.0116]
[1729243577832,1.75003,2632.0,2631.9,1.0116]
[1729243578730,1.37,2632.0,2631.9,1.0116]
[1729243579534,1.75003,2632.0,2631.9,1.0116]
[1729243580031,1.37,2632.0,2631.9,1.0116]
[1729243586032,1.75003,2632.0,2631.9,1.0116]
[1729243588433,1.37,2632.0,2631.9,1.0116]
[1729243591643,3.2078,2632.3,2631.9,1.0116]
[1729243591843,1.37,2632.4,2632.1,1.37]
[1729243592046,1.37,2632.3,2632.2,0.527]
[1729243593543,1.37,2632.3,2631.9,1.0116]
[1729243593744,1.37,2632.0,2631.9,1.0116]
[1729243593941,1.37,2632.0,2631.9,1.39164]
[1729243594143,1.37,2632.0,2631.9,1.0116]
[1729243596555,0.94988,2632.6,2631.9,1.0116]
[1729243596556,3.2078,2632.8,2631.9,12.1808]
[1729243596851,3.2078,2632.8,2632.0,4.5778]
[1729243596852,1.75,2632.2,2632.0,4.5778]
[1729243597146,3.19483,2632.7,2632.0,3.2078]
[1729243597147,1.37,2632.1,2632.0,3.2078]
[1729243598047,1.37,2632.2,2632.0,3.2078]
[1729243598250,1.37,2632.2,2632.0,3.58782]
[1729243598450,1.37,2632.2,2632.0,4.95782]
[1729243600052,1.75001,2632.2,2632.0,3.2078]
[1729243600652,1.75001,2632.2,2632.0,3.58783]
[1729243600855,1.75001,2632.2,2632.0,0.38003]
[1729243601153,1.75001,2632.2,2632.0,3.58783]
[1729243601350,1.75001,2632.2,2632.0,4.58006706]
[1729243601550,1.37,2632.1,2632.0,4.58006706]
[1729243601752,1.37,2632.1,2632.0,4.20003706]
[1729243602355,1.37,2632.1,2632.0,4.58006706]
[1729243602549,1.37,2632.1,2632.0,3.2078]
[1729243602758,1.75001,2632.1,2632.0,3.2078]
[1729243605160,0.38003,2632.0,2631.9,1.0116]
[1729243609371,1.75003,2632.0,2631.9,1.0116]
[1729243611675,1.37,2632.0,2631.9,1.0116]
[1729243611867,1.75003,2632.0,2631.9,1.0116]
[1729243613060,1.37,2632.0,2631.9,1.0116]
[1729243614267,2.258,2632.1,2631.9,2.76164]
[1729243615070,1.37,2632.0,2631.9,1.0116]
[1729243617573,1.75003,2632.0,2631.9,1.0116]
[1729243620571,2.63802,2632.1,2631.9,1.39164]
[1729243620776,2.258,2632.1,2631.9,1.0116]
[1729243621769,2.258,2632.1,2631.9,2.3816]
[1729243621966,0.38003,2632.0,2631.9,2.3816]
[1729243622586,1.75003,2632.1,2631.9,2.3816]
[1729243623079,4.0958,2632.3,2632.0,1.37]
[1729243623276,5.84579,2632.3,2632.1,0.87001]
[1729243623676,4.5778,2632.3,2632.1,2.24001]
[1729243624478,1.37,2632.2,2632.1,0.49]
[1729243624684,1.75,2632.2,2632.1,0.49]
[1729243624975,1.37,2632.2,2632.1,0.49]
[1729243625181,1.75,2632.2,2632.1,0.49]
[1729243629085,1.37,2632.2,2632.1,0.49]
[1729243629276,1.75,2632.2,2632.1,0.87001]
[1729243629582,1.75,2632.2,2632.1,0.49]
[1729243632473,1.75,2632.2,2632.1,0.87001]
[1729243633573,1.75,2632.2,2632.1,0.49]
[1729243634083,1.37,2632.2,2631.9,1.0116]
[1729243634284,4.0958,2632.4,2631.9,1.0116]
[1729243634285,1.75003,2632.0,2631.9,1.0116]
[1729243636881,1.37,2632.0,2631.9,1.0116]
[1729243637983,1.37,2632.0,2631.9,2.76164]
[1729243640084,5.54923,2632.0,2631.9,0.4885]
[1729243640284,12.04453,2632.0,2631.9,0.4885]
[1729243641402,16.2423,2632.0,2631.4,0.529]
[1729243641687,0.38009,2631.6,2631.5,0.5148]
[1729243642788,1.75009,2631.6,2631.5,1.0119]
[1729243644587,1.75008,2631.7,2631.5,2.762]
[1729243644794,2.60908,2631.7,2631.6,1.37]
[1729243645689,0.38009,2631.6,2631.5,2.3819]
[1729243646198,0.38009,2631.6,2631.5,2.762]
[1729243646898,1.75009,2631.6,2631.5,2.762]
[1729243647599,1.37,2631.6,2631.5,2.762]
[1729243648598,1.75009,2631.6,2631.5,2.762]
[1729243649195,1.75009,2631.6,2631.5,1.392]
[1729243649999,1.75009,2631.6,2631.5,1.0119]
[1729243650191,1.75009,2631.6,2631.5,1.392]
[1729243651895,1.75009,2631.6,2631.5,1.0119]
[1729243652410,1.75009,2631.6,2631.5,2.762]
[1729243653284,1.75009,2631.6,2631.5,2.3819]
[1729243657502,1.75009,2631.6,2631.5,2.762]
[1729243658092,1.75009,2631.6,2631.5,2.3819]
[1729243661301,1.75009,2631.6,2631.5,1.0119]
[1729243662193,1.75009,2631.6,2631.5,1.392]
[1729243662402,1.75009,2631.6,2631.5,1.0119]
[1729243663103,1.75009,2631.6,2631.5,2.762]
[1729243663599,1.75009,2631.6,2631.5,1.0119]
[1729243664700,1.56459545,2631.6,2631.1,3.2078]
[1729243664905,0.38013,2631.4,2631.2,1.0166]
[1729243665200,0.5198,2631.5,2631.2,1.0166]
[1729243665201,0.38013,2631.3,2631.2,1.0166]
[1729243665605,0.89991,2631.5,2631.2,2.3866]
[1729243665804,1.37,2631.3,2631.2,2.3866]
[1729243666103,1.37,2631.3,2631.2,2.76674]
[1729243666303,2.229,2631.3,2631.2,2.3866]
[1729243666494,1.37,2631.3,2631.2,2.3866]
[1729243666694,2.229,2631.3,2631.2,2.3866]
[1729243666895,2.229,2631.3,2631.2,1.0166]
[1729243667102,2.60913,2631.3,2631.2,1.0166]
[1729243668899,1.75013,2631.3,2631.2,1.0166]
[1729243669204,2.60913,2631.3,2631.2,1.0166]
[1729243675202,2.60913,2631.3,2631.2,0.5327]
[1729243675403,13.3998,2631.3,2630.7,0.99223706]
[1729243675607,13.3998,2631.3,2630.7,0.38021]
[1729243675608,1.37,2630.8,2630.7,0.38021]
[1729243675799,1.37,2630.8,2630.6,5.75643706]
[1729243675800,1.75021,2630.8,2630.6,5.14442]
[1729243675998,1.37,2630.7,2630.6,6.1342]
[1729243676198,1.37,2630.8,2630.7,0.38021]
[1729243676407,1.37,2630.8,2630.7,1.75021]
[1729243681014,0.86,2631.0,2630.9,0.38018]
[1729243681209,1.75017,2631.0,2630.9,0.38018]
[1729243681506,1.75018,2631.0,2630.9,0.38019]
[1729243681706,1.75018,2631.0,2630.9,0.87189]
[1729243682409,1.37,2631.0,2630.9,0.87189]